[Event "2. Itzehoer Schach Open"]
[Site "Itzehoe, Germany"]
[Date "2023.04.30"]
[Round "4.34"]
[White "Hieke, Andrea"]
[Black "Knudsen, Finn Luca"]
[Result "0-1"]
[TimeControl "90 min / 40 Züge + 30 min + 30 Sek pro Zug"]
[WhiteElo "912"]
[BlackElo "929"]

1. e4 {[%clk 01:30:57]} {[%emt 00:00:01]} e5 {[%clk 01:30:56]} {[%emt
00:00:06]} 2. Nf3 {[%clk 01:31:22]} {[%emt 00:00:05]} Nc6 {[%clk 01:31:12]}
{[%emt 00:00:13]} 3. Bc4 {[%clk 01:31:33]} {[%emt 00:00:19]} Bc5 {[%clk
01:27:31]} {[%emt 00:04:11]} 4. Nc3 {[%clk 01:31:40]} {[%emt 00:00:23]} d6
{[%clk 01:26:56]} {[%emt 00:01:05]} 5. d3 {[%clk 01:32:05]} {[%emt 00:00:05]}
Bg4 {[%clk 01:26:08]} {[%emt 00:01:18]} 6. h3 {[%clk 01:32:06]} {[%emt
00:00:30]} Bxf3 {[%clk 01:25:43]} {[%emt 00:00:55]} 7. Qxf3 {[%clk 01:32:08]}
{[%emt 00:00:28]} Nf6 {[%clk 01:25:29]} {[%emt 00:00:44]} 8. Nd5 {[%clk
01:31:43]} {[%emt 00:00:56]} Nd4 {[%clk 01:24:33]} {[%emt 00:01:26]} 9. Qg3
{[%clk 01:30:31]} {[%emt 00:01:42]} Nxd5 {[%clk 01:21:22]} {[%emt 00:03:42]} 10.
Bxd5 {[%clk 01:30:04]} {[%emt 00:00:55]} O-O {[%clk 01:20:56]} {[%emt
00:00:56]} 11. c3 {[%clk 01:28:28]} {[%emt 00:02:06]} Nc2+ {[%clk 01:14:49]}
{[%emt 00:06:37]} 12. Kd1 {[%clk 01:27:42]} {[%emt 00:01:16]} Nxa1 {[%clk
01:15:00]} {[%emt 00:00:19]} 13. b4 {[%clk 01:27:05]} {[%emt 00:01:08]} Bb6
{[%clk 01:14:47]} {[%emt 00:00:43]} 14. a4 {[%clk 01:26:52]} {[%emt 00:00:43]}
c6 {[%clk 01:14:17]} {[%emt 00:00:59]} 15. Ba2 {[%clk 01:22:42]} {[%emt
00:04:40]} Qf6 {[%clk 01:12:07]} {[%emt 00:02:40]} 16. Rf1 {[%clk 01:22:21]}
{[%emt 00:00:52]} c5 {[%clk 01:11:24]} {[%emt 00:01:13]} 17. b5 {[%clk
01:21:43]} {[%emt 00:01:07]} a6 {[%clk 01:10:57]} {[%emt 00:00:57]} 18. bxa6
{[%clk 01:21:21]} {[%emt 00:00:52]} Rxa6 {[%clk 01:11:13]} {[%emt 00:00:15]} 19.
Bg5 {[%clk 01:19:53]} {[%emt 00:01:57]} Qg6 {[%clk 01:10:30]} {[%emt 00:01:12]}
20. Kd2 {[%clk 01:19:38]} {[%emt 00:00:45]} h6 {[%clk 01:09:58]} {[%emt
00:01:03]} 21. Rxa1 {[%clk 01:17:00]} {[%emt 00:03:08]} Qxg5+ {[%clk 01:09:46]}
{[%emt 00:00:42]} 22. f4 {[%clk 01:15:52]} {[%emt 00:01:37]} Qxg3 {[%emt
00:00:31]} 23. Bc4 {[%emt 00:00:36]} Qxg2+ {[%clk 01:07:17]} {[%emt 00:00:34]}
24. Ke3 {[%clk 01:15:56]} {[%emt 00:01:42]} Qxh3+ {[%emt 00:00:15]} 25. Kd2
{[%emt 00:00:24]} Qh2+ {[%clk 01:06:27]} {[%emt 00:00:41]} 26. Ke3 {[%clk
01:16:17]} {[%emt 00:00:08]} Qxf4+ {[%clk 01:06:45]} {[%emt 00:00:13]} 27. Ke2
{[%clk 01:16:20]} {[%emt 00:00:27]} Qh2+ {[%clk 01:05:58]} {[%emt 00:01:17]} 28.
Ke3 {[%clk 01:16:35]} {[%emt 00:00:14]} Qb2 {[%clk 01:05:58]} {[%emt 00:00:31]}
29. Rf1 {[%clk 01:16:09]} {[%emt 00:00:57]} Rxa4 {[%clk 01:05:46]} {[%emt
00:00:42]} 30. Bd5 {[%clk 01:15:38]} {[%emt 00:00:59]} c4+ {[%clk 01:05:20]}
{[%emt 00:00:58]} 31. Kf3 {[%clk 01:15:21]} {[%emt 00:00:47]} Ra2 {[%clk
01:05:31]} {[%emt 00:00:18]} 32. Kg4 {[%clk 01:13:22]} {[%emt 00:02:29]} Qg2+
{[%clk 01:05:47]} {[%emt 00:00:15]} 33. Kf5 {[%clk 01:12:00]} {[%emt 00:01:52]}
Qxf1+ {[%clk 01:06:05]} {[%emt 00:00:11]} 34. Kg4 {[%clk 01:12:20]} {[%emt
00:00:11]} Rg2+ {[%clk 01:06:22]} {[%emt 00:00:13]} 35. Kh3 {[%clk 01:12:40]}
{[%emt 00:00:10]} Qh1# {[%clk 01:06:26]} {[%emt 00:00:26]} 0-1

[Event "2. Itzehoer Schach Open"]
[Site "Itzehoe, Germany"]
[Date "2023.04.30"]
[Round "4.16"]
[White "Lorenz, Felix"]
[Black "Wibmer, Michael"]
[Result "0-1"]
[TimeControl "90 min / 40 Züge + 30 min + 30 Sek pro Zug"]
[WhiteElo "1128"]
[BlackElo "1675"]

1. e4 {[%clk 01:30:52]} {[%emt 00:00:08]} c5 {[%clk 01:30:53]} {[%emt
00:00:08]} 2. Nf3 {[%clk 01:31:17]} {[%emt 00:00:04]} d6 {[%clk 01:31:08]}
{[%emt 00:00:15]} 3. c3 {[%clk 01:31:35]} {[%emt 00:00:12]} Nf6 {[%clk
01:30:37]} {[%emt 00:01:01]} 4. Be2 {[%clk 01:31:37]} {[%emt 00:00:28]} Nc6
{[%clk 01:30:07]} {[%emt 00:01:01]} 5. d4 {[%clk 01:31:44]} {[%emt 00:00:23]}
cxd4 {[%clk 01:29:34]} {[%emt 00:01:03]} 6. cxd4 {[%clk 01:32:09]} {[%emt
00:00:05]} Nxe4 {[%clk 01:21:07]} {[%emt 00:08:56]} 7. d5 {[%clk 01:31:47]}
{[%emt 00:00:52]} Qa5+ {[%clk 01:21:04]} {[%emt 00:00:33]} 8. Nc3 {[%clk
01:32:08]} {[%emt 00:00:10]} Nxc3 {[%clk 01:17:27]} {[%emt 00:04:07]} 9. bxc3
{[%clk 01:32:32]} {[%emt 00:00:06]} Ne5 {[%clk 01:15:38]} {[%emt 00:02:19]} 10.
Nxe5 {[%clk 01:29:38]} {[%emt 00:03:23]} dxe5 {[%clk 01:11:29]} {[%emt
00:04:39]} 11. Rb1 {[%clk 01:28:33]} {[%emt 00:01:35]} a6 {[%clk 01:07:39]}
{[%emt 00:04:21]} 12. Be3 {[%clk 01:26:33]} {[%emt 00:02:29]} Qxc3+ {[%clk
00:52:57]} {[%emt 00:15:13]} 13. Bd2 {[%clk 01:26:23]} {[%emt 00:00:39]} Qc7
{[%clk 00:48:29]} {[%emt 00:04:57]} 14. Rc1 {[%clk 01:25:51]} {[%emt 00:01:03]}
Qd7 {[%clk 00:42:24]} {[%emt 00:06:35]} 15. Bg4 {[%clk 01:22:36]} {[%emt
00:03:45]} Qxg4 {[%clk 00:39:09]} {[%emt 00:03:45]} 16. Qc2 {[%clk 01:15:51]}
{[%emt 00:07:16]} g6 {[%clk 00:35:30]} {[%emt 00:04:07]} 17. O-O {[%clk
01:13:30]} {[%emt 00:02:53]} Bg7 {[%clk 00:33:48]} {[%emt 00:02:11]} 18. Qc7
{[%clk 01:10:13]} {[%emt 00:03:47]} Qd7 {[%clk 00:32:46]} {[%emt 00:01:32]} 19.
Bb4 {[%clk 01:05:46]} {[%emt 00:04:57]} Qxc7 {[%clk 00:26:39]} {[%emt
00:06:36]} 20. Rxc7 {[%clk 01:06:10]} Bf6 {[%clk 00:27:00]} {[%emt 00:00:15]}
21. d6 {[%clk 01:03:45]} {[%emt 00:02:56]} exd6 {[%clk 00:24:27]} {[%emt
00:03:03]} 22. Bxd6 {[%clk 01:04:09]} {[%emt 00:00:06]} Be6 {[%clk 00:23:19]}
{[%emt 00:01:38]} 23. Rfc1 {[%clk 00:58:38]} {[%emt 00:06:01]} b5 {[%clk
00:19:31]} {[%emt 00:04:18]} 24. R1c6 {[%clk 00:53:45]} {[%emt 00:05:22]} Bd8
{[%clk 00:16:12]} {[%emt 00:03:50]} 25. Rb7 {[%clk 00:51:45]} {[%emt 00:02:30]}
Bd5 {[%clk 00:15:59]} {[%emt 00:00:42]} 26. Rcc7 {[%clk 00:46:56]} {[%emt
00:05:21]} Bxb7 {[%clk 00:15:10]} {[%emt 00:01:18]} 27. Rxb7 {[%clk 00:47:20]}
{[%emt 00:00:07]} Bf6 {[%clk 00:13:08]} {[%emt 00:02:30]} 28. g4 {[%clk
00:46:06]} {[%emt 00:01:45]} e4 {[%clk 00:11:44]} {[%emt 00:01:54]} 29. Rb6
{[%clk 00:46:26]} {[%emt 00:00:10]} Bd4 {[%clk 00:11:30]} {[%emt 00:00:44]} 30.
Rb7 {[%clk 00:46:25]} {[%emt 00:00:32]} Ra7 {[%clk 00:10:55]} {[%emt 00:01:05]}
31. Rb8+ {[%clk 00:44:18]} {[%emt 00:02:36]} Kd7 {[%clk 00:11:13]} {[%emt
00:00:11]} 32. Rxh8 {[%clk 00:44:37]} {[%emt 00:00:12]} Bxh8 {[%clk 00:11:34]}
{[%emt 00:00:09]} 33. Bc5 {[%clk 00:44:53]} {[%emt 00:00:14]} Rc7 {[%clk
00:11:44]} {[%emt 00:00:18]} 34. Be3 {[%emt 00:00:09]} b4 {[%emt 00:00:17]} 35.
Kg2 {[%clk 00:44:38]} {[%emt 00:00:22]} Rc2 {[%clk 00:11:54]} {[%emt 00:00:18]}
0-1

[Event "2. Itzehoer Schach Open"]
[Site "Itzehoe, Germany"]
[Date "2023.04.30"]
[Round "4.33"]
[White "Lorenzen, Lars"]
[Black "Retzlaff, Wolfgang"]
[Result "0-1"]
[TimeControl "90 min / 40 Züge + 30 min + 30 Sek pro Zug"]
[WhiteElo "1218"]
[BlackElo "1704"]

1. d4 {[%clk 01:30:58]} {[%emt 00:00:02]} d5 {[%clk 01:30:43]} {[%emt
00:00:17]} 2. Bf4 {[%clk 01:31:22]} {[%emt 00:00:05]} Nf6 {[%clk 01:31:03]}
{[%emt 00:00:11]} 3. e3 {[%clk 01:31:42]} {[%emt 00:00:11]} e6 {[%clk
01:31:09]} {[%emt 00:00:24]} 4. Nd2 {[%clk 01:32:06]} {[%emt 00:00:06]} Bd6
{[%clk 01:31:31]} {[%emt 00:00:08]} 5. Bg3 {[%clk 01:32:29]} {[%emt 00:00:07]}
Qe7 {[%clk 01:31:40]} {[%emt 00:00:21]} 6. Ngf3 {[%clk 01:32:40]} {[%emt
00:00:20]} c5 {[%clk 01:31:57]} {[%emt 00:00:12]} 7. c3 {[%clk 01:33:06]}
{[%emt 00:00:04]} Nc6 {[%clk 01:32:11]} {[%emt 00:00:16]} 8. Bd3 {[%clk
01:33:12]} {[%emt 00:00:24]} O-O {[%clk 01:31:40]} {[%emt 00:01:01]} 9. Qb1
{[%clk 01:32:34]} {[%emt 00:01:08]} e5 {[%clk 01:31:48]} {[%emt 00:00:22]} 10.
dxe5 {[%clk 01:32:36]} {[%emt 00:00:28]} Nxe5 {[%clk 01:32:11]} {[%emt
00:00:07]} 11. Nxe5 {[%clk 01:32:45]} {[%emt 00:00:21]} Bxe5 {[%clk 01:32:34]}
{[%emt 00:00:08]} 12. Bh4 {[%clk 01:32:41]} {[%emt 00:00:33]} g6 {[%clk
01:32:35]} {[%emt 00:00:28]} 13. O-O {[%emt 00:00:26]} Qe6 {[%emt 00:01:54]} 14.
Qd1 {[%clk 01:29:36]} {[%emt 00:01:15]} Bc7 {[%clk 01:32:05]} {[%emt 00:00:59]}
15. c4 {[%clk 01:27:22]} {[%emt 00:02:45]} Ng4 {[%clk 01:31:18]} {[%emt
00:01:16]} 16. h3 {[%clk 01:24:34]} {[%emt 00:03:18]} Nxe3 {[%clk 01:29:19]}
{[%emt 00:02:30]} 17. Re1 {[%clk 01:23:00]} {[%emt 00:02:04]} Nxd1 {[%clk
01:28:53]} {[%emt 00:00:56]} 18. Rxe6 {[%clk 01:23:25]} {[%emt 00:00:04]} Bxe6
{[%clk 01:28:50]} {[%emt 00:00:33]} 19. Rxd1 {[%clk 01:23:32]} {[%emt
00:00:23]} dxc4 {[%clk 01:28:32]} {[%emt 00:00:47]} 20. Nxc4 {[%clk 01:23:46]}
{[%emt 00:00:17]} b5 {[%clk 01:28:51]} {[%emt 00:00:11]} 21. Na3 {[%clk
01:23:17]} {[%emt 00:01:00]} a6 {[%clk 01:28:36]} {[%emt 00:00:45]} 22. Bc2
{[%clk 01:23:11]} {[%emt 00:00:36]} Bd8 {[%clk 01:28:05]} {[%emt 00:01:00]} 23.
Bg3 {[%clk 01:23:27]} {[%emt 00:00:15]} Bf6 {[%clk 01:28:20]} {[%emt 00:00:14]}
24. b3 {[%clk 01:23:24]} {[%emt 00:00:34]} Rad8 {[%clk 01:28:38]} {[%emt
00:00:11]} 25. Rc1 {[%clk 01:22:29]} {[%emt 00:01:26]} Bb2 {[%clk 01:28:52]}
{[%emt 00:00:16]} 0-1

[Event "2. Itzehoer Schach Open"]
[Site "Itzehoe, Germany"]
[Date "2023.04.30"]
[Round "4.6"]
[White "Fuhrmann, Bahne"]
[Black "Lebiedz, Oliver"]
[Result "1-0"]
[TimeControl "90 min / 40 Züge + 30 min + 30 Sek pro Zug"]
[WhiteElo "2035"]
[BlackElo "1921"]

1. d4 {[%clk 01:28:52]} {[%emt 00:02:07]} d5 {[%clk 01:30:12]} {[%emt
00:00:48]} 2. c4 {[%clk 01:29:17]} {[%emt 00:00:06]} e6 {[%clk 01:30:20]}
{[%emt 00:00:22]} 3. Nf3 {[%clk 01:29:43]} {[%emt 00:00:04]} Nf6 {[%clk
01:30:09]} {[%emt 00:00:40]} 4. g3 {[%clk 01:30:08]} {[%emt 00:00:05]} Bb4+
{[%clk 01:28:32]} {[%emt 00:02:08]} 5. Nbd2 {[%clk 01:30:32]} {[%emt 00:00:05]}
O-O {[%clk 01:20:28]} {[%emt 00:08:34]} 6. Bg2 {[%clk 01:30:50]} {[%emt
00:00:12]} Ne4 {[%clk 01:19:39]} {[%emt 00:01:19]} 7. O-O {[%clk 01:27:21]}
{[%emt 00:04:00]} f5 {[%clk 01:18:53]} {[%emt 00:01:16]} 8. Ne5 {[%clk
01:25:04]} {[%emt 00:02:47]} c6 {[%clk 01:17:53]} {[%emt 00:01:30]} 9. Nxe4
{[%clk 01:23:19]} {[%emt 00:02:15]} fxe4 {[%clk 01:16:24]} {[%emt 00:01:58]} 10.
f3 {[%clk 01:22:38]} {[%emt 00:01:12]} exf3 {[%clk 01:16:07]} {[%emt 00:00:47]}
11. Rxf3 {[%clk 01:21:49]} {[%emt 00:01:18]} Nd7 {[%clk 01:15:55]} {[%emt
00:00:43]} 12. Rxf8+ {[%clk 01:21:25]} {[%emt 00:00:53]} Qxf8 {[%clk 01:14:53]}
{[%emt 00:01:31]} 13. Bf4 {[%clk 01:20:18]} {[%emt 00:01:39]} Bd6 {[%clk
01:10:57]} {[%emt 00:04:25]} 14. Nxd7 {[%clk 01:10:18]} {[%emt 00:10:31]} Bxd7
{[%clk 01:11:25]} {[%emt 00:00:02]} 15. Bxd6 {[%clk 01:10:18]} {[%emt
00:00:30]} Qxd6 {[%clk 01:11:52]} {[%emt 00:00:03]} 16. Qb3 {[%clk 01:10:15]}
{[%emt 00:00:33]} b6 {[%clk 01:09:03]} {[%emt 00:03:19]} 17. Kh1 {[%clk
01:05:02]} {[%emt 00:05:43]} Rf8 {[%clk 00:51:46]} {[%emt 00:17:47]} 18. Rd1
{[%clk 00:58:12]} {[%emt 00:07:20]} Rf7 {[%clk 00:36:51]} {[%emt 00:15:24]} 19.
Rd3 {[%clk 00:56:28]} {[%emt 00:02:15]} Qf8 {[%clk 00:32:24]} {[%emt 00:04:56]}
20. Rf3 {[%clk 00:43:42]} {[%emt 00:13:17]} Rxf3 {[%clk 00:26:17]} {[%emt
00:06:35]} 21. Bxf3 {[%clk 00:43:57]} {[%emt 00:00:17]} Be8 {[%clk 00:23:56]}
{[%emt 00:02:51]} 22. Kg2 {[%clk 00:44:01]} {[%emt 00:00:26]} Qd6 {[%clk
00:22:55]} {[%emt 00:01:29]} 23. a4 {[%clk 00:42:13]} {[%emt 00:02:20]} Qc7
{[%clk 00:18:46]} {[%emt 00:04:38]} 24. Qc3 {[%clk 00:38:44]} {[%emt 00:04:00]}
Bf7 {[%clk 00:18:52]} {[%emt 00:00:23]} 25. c5 {[%clk 00:26:20]} {[%emt
00:12:55]} Qb7 {[%clk 00:13:04]} {[%emt 00:06:17]} 26. cxb6 {[%clk 00:25:09]}
{[%emt 00:01:42]} axb6 {[%clk 00:13:21]} {[%emt 00:00:11]} 27. b4 {[%clk
00:24:37]} {[%emt 00:01:04]} h6 {[%clk 00:09:12]} {[%emt 00:04:38]} 28. Kf2
{[%clk 00:24:51]} {[%emt 00:00:16]} Bg6 {[%clk 00:08:26]} {[%emt 00:01:17]} 29.
a5 {[%clk 00:23:26]} {[%emt 00:01:55]} bxa5 {[%clk 00:08:20]} {[%emt 00:00:36]}
30. bxa5 {[%clk 00:23:48]} {[%emt 00:00:08]} Kf8 {[%clk 00:06:01]} {[%emt
00:02:46]} 31. Qa3+ {[%clk 00:22:57]} {[%emt 00:01:24]} Ke8 {[%clk 00:06:24]}
{[%emt 00:00:06]} 32. a6 {[%clk 00:16:48]} {[%emt 00:06:41]} Qa7 {[%clk
00:06:46]} {[%emt 00:00:07]} 33. Qd6 {[%clk 00:17:00]} {[%emt 00:00:18]} 1-0

[Event "2. Itzehoer Schach Open"]
[Site "Itzehoe, Germany"]
[Date "2023.04.30"]
[Round "4.20"]
[White "Hieke, Jonas"]
[Black "Ploog, Jakob"]
[Result "1-0"]
[TimeControl "90 min / 40 Züge + 30 min + 30 Sek pro Zug"]
[WhiteElo "1584"]
[BlackElo "1392"]

1. e4 {[%clk 01:30:59]} {[%emt 00:00:01]} e6 {[%clk 01:30:51]} {[%emt
00:00:09]} 2. d4 {[%clk 01:31:23]} {[%emt 00:00:05]} d5 {[%clk 01:30:56]}
{[%emt 00:00:26]} 3. exd5 {[%clk 01:30:59]} {[%emt 00:00:54]} Qxd5 {[%clk
01:30:48]} {[%emt 00:00:37]} 4. c4 {[%clk 01:30:41]} {[%emt 00:00:49]} Bb4+
{[%clk 01:29:50]} {[%emt 00:01:29]} 5. Bd2 {[%clk 01:28:48]} {[%emt 00:02:20]}
Qe4+ {[%clk 01:28:54]} {[%emt 00:01:27]} 6. Ne2 {[%clk 01:29:05]} {[%emt
00:00:12]} Nc6 {[%clk 01:23:20]} {[%emt 00:06:06]} 7. Bxb4 {[%clk 01:22:34]}
{[%emt 00:07:01]} Nxb4 {[%clk 01:23:33]} {[%emt 00:00:17]} 8. Qa4+ {[%clk
01:22:54]} {[%emt 00:00:08]} Nc6 {[%clk 01:23:54]} {[%emt 00:00:10]} 9. Nbc3
{[%clk 01:22:13]} {[%emt 00:01:10]} Qg4 {[%clk 01:23:14]} {[%emt 00:01:10]} 10.
h3 {[%clk 01:22:14]} {[%emt 00:00:30]} Qg6 {[%clk 01:12:11]} {[%emt 00:11:34]}
11. d5 {[%clk 01:22:02]} {[%emt 00:00:41]} b5 {[%clk 01:10:14]} {[%emt
00:02:28]} 12. Qxb5 {[%clk 01:21:14]} {[%emt 00:01:18]} Rb8 {[%clk 01:10:36]}
{[%emt 00:00:08]} 13. Qxc6+ {[%clk 01:21:35]} {[%emt 00:00:08]} Bd7 {[%clk
01:10:56]} {[%emt 00:00:09]} 14. Qc5 {[%clk 01:19:56]} {[%emt 00:02:08]} Rxb2
{[%clk 01:11:18]} {[%emt 00:00:09]} 15. Qe3 {[%clk 01:17:24]} {[%emt 00:03:01]}
Ne7 {[%clk 01:11:17]} {[%emt 00:00:31]} 16. Qe4 {[%emt 00:03:07]} f5 {[%clk
01:09:53]} 17. Qh4 {[%clk 01:12:41]} {[%emt 00:04:29]} f4 {[%clk 01:06:44]}
{[%emt 00:03:41]} 18. Qxf4 {[%clk 01:03:51]} {[%emt 00:09:19]} Qc2 {[%clk
01:06:37]} {[%emt 00:00:37]} 19. Rc1 {[%clk 01:03:52]} {[%emt 00:00:27]} Qg6
{[%clk 01:03:52]} {[%emt 00:03:19]} 20. Qe4 {[%clk 01:01:25]} {[%emt 00:02:55]}
Qh6 {[%clk 01:02:53]} {[%emt 00:01:30]} 21. Rc2 {[%clk 00:58:46]} {[%emt
00:03:03]} Rb6 {[%clk 01:02:14]} {[%emt 00:01:13]} 22. f3 {[%clk 00:49:20]}
{[%emt 00:09:56]} exd5 {[%clk 01:02:08]} {[%emt 00:00:38]} 23. Nxd5 {[%clk
00:49:37]} {[%emt 00:00:12]} Rb1+ {[%clk 00:59:10]} {[%emt 00:03:29]} 24. Kf2
{[%clk 00:49:51]} {[%emt 00:00:16]} O-O {[%clk 00:57:19]} {[%emt 00:02:22]} 25.
Nxe7+ {[%clk 00:49:37]} {[%emt 00:00:42]} Kh8 {[%clk 00:57:38]} {[%emt
00:00:11]} 26. Ng3 {[%clk 00:48:08]} {[%emt 00:01:57]} Re8 {[%clk 00:49:11]}
{[%emt 00:08:59]} 27. Nef5 {[%clk 00:46:46]} {[%emt 00:01:51]} Qb6+ {[%clk
00:48:44]} {[%emt 00:00:59]} 28. Qd4 {[%clk 00:46:59]} {[%emt 00:00:11]} Bxf5
{[%clk 00:37:04]} {[%emt 00:12:16]} 29. Qxb6 {[%clk 00:46:51]} {[%emt
00:00:39]} Bxc2 {[%clk 00:37:03]} {[%emt 00:00:30]} 30. Qxc7 {[%clk 00:46:49]}
{[%emt 00:00:32]} h6 {[%clk 00:36:30]} {[%emt 00:01:03]} 31. Be2 {[%clk
00:47:08]} {[%emt 00:00:08]} Rb2 {[%clk 00:36:36]} {[%emt 00:00:27]} 32. Qxa7
{[%clk 00:46:49]} {[%emt 00:00:49]} Bd3 {[%clk 00:36:25]} {[%emt 00:00:41]} 33.
Re1 {[%clk 00:45:34]} {[%emt 00:01:43]} Bxc4 {[%clk 00:36:40]} {[%emt
00:00:18]} 34. Qd4 {[%clk 00:45:00]} {[%emt 00:01:00]} Rc2 {[%clk 00:36:36]}
{[%emt 00:00:38]} 35. Nf5 {[%clk 00:42:56]} {[%emt 00:02:32]} Rg8 {[%clk
00:34:12]} {[%emt 00:02:55]} 36. Ne3 {[%clk 00:43:13]} {[%emt 00:00:13]} 1-0

[Event "2. Itzehoer Schach Open"]
[Site "Itzehoe, Germany"]
[Date "2023.04.30"]
[Round "4.22"]
[White "Thomas, Jeremy"]
[Black "Aguike, Toshiya"]
[Result "1-0"]
[TimeControl "90 min / 40 Züge + 30 min + 30 Sek pro Zug"]
[WhiteElo "1894"]
[BlackElo "1491"]

1. e4 {[%clk 01:30:45]} {[%emt 00:00:14]} e5 {[%clk 01:30:53]} {[%emt
00:00:08]} 2. Nf3 {[%clk 01:31:09]} {[%emt 00:00:05]} Nc6 {[%clk 01:31:18]}
{[%emt 00:00:06]} 3. Nc3 {[%clk 01:31:35]} {[%emt 00:00:04]} Nf6 {[%clk
01:31:42]} {[%emt 00:00:06]} 4. d4 {[%clk 01:32:00]} {[%emt 00:00:04]} exd4
{[%clk 01:31:50]} {[%emt 00:00:22]} 5. Nxd4 {[%clk 01:32:28]} {[%emt 00:00:02]}
Nxd4 {[%clk 01:32:00]} {[%emt 00:00:20]} 6. Qxd4 {[%clk 01:32:51]} {[%emt
00:00:07]} d6 {[%clk 01:32:24]} {[%emt 00:00:06]} 7. Bc4 {[%clk 01:32:02]}
{[%emt 00:01:19]} Be7 {[%clk 01:32:47]} {[%emt 00:00:07]} 8. O-O {[%clk
01:30:04]} {[%emt 00:02:29]} O-O {[%clk 01:33:06]} {[%emt 00:00:11]} 9. Bg5
{[%clk 01:27:56]} {[%emt 00:02:38]} h6 {[%clk 01:33:15]} {[%emt 00:00:20]} 10.
Bh4 {[%clk 01:27:33]} {[%emt 00:00:53]} b6 {[%clk 01:33:15]} {[%emt 00:00:31]}
11. Rfe1 {[%clk 01:26:13]} {[%emt 00:01:50]} Bb7 {[%clk 01:32:58]} {[%emt
00:00:47]} 12. Rad1 {[%clk 01:25:11]} {[%emt 00:01:31]} Re8 {[%clk 01:31:19]}
{[%emt 00:02:09]} 13. Qd3 {[%clk 01:14:03]} {[%emt 00:11:38]} a6 {[%clk
01:28:57]} {[%emt 00:02:54]} 14. Bg3 {[%clk 01:02:24]} {[%emt 00:12:08]} b5
{[%clk 01:24:47]} {[%emt 00:04:41]} 15. Bb3 {[%clk 01:02:48]} {[%emt 00:00:05]}
c5 {[%clk 01:25:03]} {[%emt 00:00:14]} 16. Bd5 {[%clk 01:03:11]} {[%emt
00:00:07]} Nxd5 {[%clk 01:25:09]} {[%emt 00:00:24]} 17. Nxd5 {[%clk 01:03:30]}
{[%emt 00:00:11]} Bxd5 {[%clk 01:25:28]} {[%emt 00:00:10]} 18. Qxd5 {[%clk
01:03:48]} {[%emt 00:00:12]} Qb6 {[%clk 01:25:45]} {[%emt 00:00:13]} 19. h3
{[%clk 00:58:32]} {[%emt 00:05:46]} Rad8 {[%clk 01:25:46]} {[%emt 00:00:29]} 20.
Re2 {[%clk 00:54:44]} {[%emt 00:04:18]} Bf6 {[%clk 01:25:46]} {[%emt 00:00:30]}
21. b3 {[%clk 00:53:22]} {[%emt 00:01:52]} Be5 {[%clk 01:25:57]} {[%emt
00:00:19]} 22. f4 {[%clk 00:51:41]} {[%emt 00:02:11]} Bd4+ {[%clk 01:26:12]}
{[%emt 00:00:15]} 23. Bf2 {[%clk 00:51:00]} {[%emt 00:01:11]} Re5 {[%clk
01:24:52]} {[%emt 00:01:51]} 24. fxe5 {[%clk 00:50:37]} {[%emt 00:00:53]} dxe5
{[%clk 01:25:07]} {[%emt 00:00:14]} 25. Rxd4 {[%clk 00:49:31]} {[%emt
00:01:37]} Rxd5 {[%clk 01:24:46]} {[%emt 00:00:50]} 26. Rxd5 {[%clk 00:49:51]}
{[%emt 00:00:11]} Qa5 {[%clk 01:24:54]} {[%emt 00:00:22]} 27. Bxc5 {[%clk
00:48:22]} {[%emt 00:01:57]} Qxa2 {[%clk 01:25:11]} {[%emt 00:00:13]} 28. Kf2
{[%clk 00:48:14]} {[%emt 00:00:38]} f6 {[%clk 01:25:31]} {[%emt 00:00:12]} 29.
b4 {[%clk 00:47:17]} {[%emt 00:01:27]} a5 {[%clk 01:25:28]} {[%emt 00:00:33]}
30. c3 {[%clk 00:47:07]} {[%emt 00:00:40]} Qa3 {[%clk 01:25:50]} {[%emt
00:00:08]} 31. bxa5 {[%clk 00:46:49]} {[%emt 00:00:47]} Qxa5 {[%clk 01:25:56]}
{[%emt 00:00:25]} 32. Bb4 {[%clk 00:47:06]} {[%emt 00:00:12]} Qb6+ {[%clk
01:26:09]} {[%emt 00:00:17]} 33. Rc5 {[%clk 00:46:05]} {[%emt 00:01:31]} Kf7
{[%clk 01:26:19]} {[%emt 00:00:20]} 34. Rd2 {[%clk 00:45:44]} {[%emt 00:00:49]}
g5 {[%clk 01:26:32]} {[%emt 00:00:19]} 35. Kf3 {[%clk 00:45:24]} {[%emt
00:00:50]} Qa6 {[%clk 01:26:34]} {[%emt 00:00:28]} 36. Rc7+ {[%clk 00:39:50]}
{[%emt 00:06:04]} Kg6 {[%clk 01:26:17]} {[%emt 00:00:46]} 37. Rcd7 {[%clk
00:38:41]} {[%emt 00:01:40]} Qa8 {[%clk 01:25:44]} {[%emt 00:01:04]} 38. R7d6
{[%clk 00:38:22]} {[%emt 00:00:48]} Qa1 {[%clk 01:25:40]} {[%emt 00:00:33]} 39.
Rf2 {[%clk 00:33:26]} {[%emt 00:05:27]} Qc1 {[%clk 01:25:03]} {[%emt 00:01:07]}
40. Kg3 {[%clk 00:33:18]} {[%emt 00:00:38]} Qe3+ {[%clk 01:25:16]} {[%emt
00:00:16]} 41. Rf3 {[%clk 00:33:43]} {[%emt 00:00:06]} Qxe4 {[%clk 01:25:00]}
{[%emt 00:00:46]} 42. Rdxf6+ {[%clk 00:33:03]} {[%emt 00:01:10]} Kg7 {[%clk
01:25:04]} {[%emt 00:00:26]} 43. Bf8+ {[%clk 00:33:04]} {[%emt 00:00:29]} Kg8
{[%clk 01:25:21]} {[%emt 00:00:12]} 44. Rxh6 {[%clk 00:32:22]} {[%emt
00:01:12]} Qc4 {[%clk 01:25:20]} {[%emt 00:00:31]} 45. Rg6+ {[%clk 00:31:51]}
{[%emt 00:01:01]} Kh7 {[%clk 01:25:32]} {[%emt 00:00:18]} 46. Rxg5 {[%clk
00:31:50]} {[%emt 00:00:32]} e4 {[%clk 01:25:48]} {[%emt 00:00:15]} 47. Rf4
{[%clk 00:22:36]} {[%emt 00:09:43]} 1-0